fUSD/lending_fUSD_20240929
["ID","MTS","AMOUNT","RATE_DAILY","PERIOD"]
[339447198,1727617888621,-588.94,0.00010999,2]
[339447199,1727617888629,-1047.37,0.00010999,2]
[339447200,1727617888638,-500.0,0.00010999,2]
[339447201,1727617888650,-503.15776377,0.00010999,2]
[339447202,1727617888660,-500.0,0.00010999,2]
[339447203,1727617888671,-1047.54172805,0.00010999,2]
[339447204,1727617888679,-588.94,0.00010999,2]
[339447205,1727617888688,-500.0,0.00010999,2]
[339447206,1727617888697,-500.0,0.00010999,2]
[339447207,1727617888707,-588.94,0.00010999,2]
[339447208,1727617888716,-500.0,0.00010999,2]
[339447209,1727617888725,-588.94,0.00010999,2]
[339447210,1727617888734,-500.0,0.00010999,2]
[339447211,1727617888744,-536.07553786,0.00010999,2]
[339447212,1727617888754,-588.94,0.00010999,2]
[339447213,1727617888763,-500.0,0.00010999,2]
[339447214,1727617888773,-588.94,0.00010999,2]
[339447215,1727617888783,-500.0,0.00010999,2]
[339447216,1727617888792,-500.0,0.00010999,2]
[339447217,1727617888802,-500.0,0.00010999,2]
[339447218,1727617888811,-500.0,0.00010999,2]
[339447219,1727617888820,-500.0,0.00010999,2]
[339447220,1727617888830,-500.0,0.00010999,2]
[339447221,1727617888840,-259.86892094,0.00010999,2]
[339447222,1727617888850,-502.586481,0.00010999,2]
[339447223,1727617888861,-500.0,0.00010999,2]
[339447224,1727617888870,-500.0,0.00010999,2]
[339447225,1727617888880,-500.0,0.00010999,2]
[339447226,1727617888890,-500.0,0.00010999,2]
[339447227,1727617888900,-500.0,0.00010999,2]
[339447228,1727617888909,-500.0,0.00010999,2]
[339447229,1727617888918,-500.0,0.00010999,2]
[339447230,1727617888927,-500.0,0.00010999,2]
[339447231,1727617888936,-500.0,0.00010999,2]
[339447232,1727617888945,-500.0,0.00010999,2]
[339447233,1727617888955,-500.0,0.00010999,2]
[339447234,1727617888963,-500.0,0.00010999,2]
[339447235,1727617889124,-500.0,0.00010999,2]
[339447236,1727617889135,-500.0,0.00010999,2]
[339447237,1727617889145,-500.0,0.00010999,2]
[339447238,1727617889154,-150.18,0.00010999,2]
[339447239,1727617889163,-500.0,0.00010999,2]
[339447240,1727617889174,-500.0,0.00010999,2]
[339447241,1727617889183,-500.0,0.00010999,2]
[339447242,1727617889193,-500.0,0.00010999,2]
[339447243,1727617889202,-500.0,0.00010999,2]
[339447244,1727617889211,-500.0,0.00010999,2]
[339447245,1727617889221,-500.0,0.00010999,2]
[339447246,1727617889233,-500.0,0.00010999,2]
[339447247,1727617889242,-500.0,0.00010999,2]
[339447248,1727617889252,-500.0,0.00010999,2]
[339447249,1727617889261,-500.0,0.00010999,2]
[339447250,1727617889270,-500.0,0.00010999,2]
[339447251,1727617889282,-304.79253986,0.00010999,2]
[339447252,1727617889291,-500.0,0.00010999,2]
[339447253,1727617889301,-500.0,0.00010999,2]
[339447254,1727617889310,-500.0,0.00010999,2]
[339447255,1727617889320,-500.0,0.00010999,2]
[339447256,1727617889329,-500.0,0.00010999,2]
[339447257,1727617889340,-500.0,0.00010999,2]
[339447258,1727617889349,-500.0,0.00010999,2]
[339447259,1727617889358,-500.0,0.00010999,2]
[339447260,1727617889367,-500.0,0.00010999,2]
[339447261,1727617889376,-500.0,0.00010999,2]
[339447262,1727617889384,-500.0,0.00010999,2]
[339447263,1727617889394,-500.0,0.00010999,2]
[339447264,1727617889403,-500.0,0.00010999,2]
[339447265,1727617889411,-500.0,0.00010999,2]
[339447266,1727617889420,-500.0,0.00010999,2]
[339447267,1727617889430,-500.0,0.00010999,2]
[339447268,1727617889440,-500.0,0.00010999,2]
[339447269,1727617889450,-500.0,0.00010999,2]
[339447270,1727617889459,-500.0,0.00010999,2]
[339447271,1727617889469,-500.0,0.00010999,2]
[339447272,1727617889479,-500.0,0.00010999,2]
[339447273,1727617889490,-500.0,0.00010999,2]
[339447274,1727617889499,-500.0,0.00010999,2]
[339447275,1727617889509,-500.0,0.00010999,2]
[339447276,1727617889518,-500.0,0.00010999,2]
[339447277,1727617889527,-500.0,0.00010999,2]
[339447278,1727617889537,-500.0,0.00010999,2]
[339447279,1727617889546,-479.51,0.00010999,2]
[339447280,1727617889556,-588.94,0.00010999,2]
[339447281,1727617889567,-500.0,0.00010999,2]
[339447282,1727617889577,-500.0,0.00010999,2]
[339447283,1727617889588,-500.0,0.00010999,2]
[339447284,1727617889598,-588.94,0.00010999,2]
[339447285,1727617889608,-500.0,0.00010999,2]
[339447286,1727617889618,-500.0,0.00010999,2]
[339447287,1727617889628,-286.35073032,0.00010999,2]
[339447288,1727617889638,-588.94,0.00010999,2]
[339447289,1727617889648,-226.81,0.00010999,2]
[339447290,1727617889657,-500.0,0.00010999,2]
[339447291,1727617889670,-500.0,0.00010999,2]
[339447292,1727617889679,-588.94,0.00010999,2]
[339447293,1727617889688,-500.0,0.00010999,2]
[339447294,1727617889698,-500.0,0.00010999,2]
[339447295,1727617889707,-500.0,0.00010999,2]
[339447296,1727617889716,-588.94,0.00010999,2]
[339447297,1727617889725,-500.0,0.00010999,2]
[339447298,1727617889734,-500.0,0.00010999,2]
[339447299,1727617889743,-502.29739688,0.00010999,2]
[339447300,1727617889752,-588.94,0.00010999,2]
[339447301,1727617889761,-500.0,0.00010999,2]
[339447302,1727617889770,-500.0,0.00010999,2]
[339447303,1727617889779,-588.94,0.00010999,2]
[339447304,1727617889789,-500.0,0.00010999,2]
[339447305,1727617889799,-588.94,0.00010999,2]
[339447306,1727617889808,-179.61437571,0.00010999,2]
[339447307,1727617889817,-500.0,0.00010999,2]
[339447308,1727617889826,-588.94,0.00010999,2]
[339447309,1727617889835,-500.0,0.00010999,2]
[339447310,1727617889844,-588.94,0.00010999,2]
[339447311,1727617889854,-500.0,0.00010999,2]
[339447312,1727617889863,-588.94,0.00010999,2]
[339447313,1727617889872,-589.11,0.00010999,2]
[339447314,1727617889881,-500.0,0.00010999,2]
[339447315,1727617889890,-402.56770767,0.00010999,2]
[339447316,1727617889900,-500.0,0.00010999,2]
[339447317,1727617889909,-500.0,0.00010999,2]
[339447318,1727617889919,-500.0,0.00010999,2]
[339447319,1727617889927,-500.0,0.00010999,2]
[339447320,1727617889937,-500.0,0.00010999,2]
[339447321,1727617889946,-500.0,0.00010999,2]
[339447322,1727617889955,-500.0,0.00010999,2]
[339447323,1727617889964,-500.0,0.00010999,2]
[339447324,1727617889973,-500.0,0.00010999,2]
[339447325,1727617889983,-500.0,0.00010999,2]
[339447326,1727617889993,-500.0,0.00010999,2]
[339447327,1727617890003,-500.0,0.00010999,2]
[339447328,1727617890012,-614.75,0.00010999,2]
[339447329,1727617890022,-500.0,0.00010999,2]
[339447330,1727617890033,-500.0,0.00010999,2]
[339447331,1727617890044,-851.89,0.00010999,2]
[339447332,1727617890055,-614.75,0.00010999,2]
[339447333,1727617890064,-500.0,0.00010999,2]
[339447334,1727617890074,-500.0,0.00010999,2]
[339447335,1727617890083,-851.89,0.00010999,2]
[339447336,1727617890092,-614.75,0.00010999,2]
[339447337,1727617890102,-500.0,0.00010999,2]
[339447338,1727617890111,-500.0,0.00010999,2]
[339447339,1727617890119,-500.0,0.00010999,2]
[339447340,1727617890128,-851.89,0.00010999,2]
[339447341,1727617890137,-614.75,0.00010999,2]
[339447342,1727617890147,-500.0,0.00010999,2]
[339447343,1727617890156,-500.0,0.00010999,2]
[339447344,1727617890164,-500.0,0.00010999,2]
[339447345,1727617890174,-851.89,0.00010999,2]
[339447346,1727617890184,-614.75,0.00010999,2]
[339447347,1727617890193,-500.0,0.00010999,2]
[339447348,1727617890202,-302.42,0.00010999,2]
[339447349,1727617890212,-500.0,0.00010999,2]
[339447350,1727617890221,-851.89,0.00010999,2]
[339447351,1727617890231,-614.75,0.00010999,2]
[339447352,1727617890240,-500.0,0.00010999,2]
[339447353,1727617890249,-500.0,0.00010999,2]
[339447354,1727617890259,-851.89,0.00010999,2]
[339447355,1727617890269,-614.75,0.00010999,2]
[339447356,1727617890280,-500.0,0.00010999,2]
[339447357,1727617890292,-851.89,0.00010999,2]
[339447358,1727617890303,-500.0,0.00010999,2]
[339447359,1727617890312,-614.75,0.00010999,2]
[339447360,1727617890322,-500.0,0.00010999,2]
[339447361,1727617890331,-851.89,0.00010999,2]
[339447362,1727617890341,-500.0,0.00010999,2]
[339447363,1727617890350,-614.75,0.00010999,2]
[339447364,1727617890359,-500.0,0.00010999,2]
[339447365,1727617890369,-251.25,0.00010999,2]
[339447366,1727617890378,-851.89,0.00010999,2]
[339447367,1727617890387,-500.0,0.00010999,2]
[339447368,1727617890396,-614.75,0.00010999,2]
[339447369,1727617890405,-500.0,0.00010999,2]
[339447370,1727617890415,-851.89,0.00010999,2]
[339447371,1727617890424,-500.0,0.00010999,2]
[339447372,1727617890433,-614.75,0.00010999,2]
[339447373,1727617890442,-500.0,0.00010999,2]
[339447374,1727617890452,-851.89,0.00010999,2]
[339447375,1727617890461,-614.75,0.00010999,2]
[339447376,1727617890471,-500.0,0.00010999,2]
[339447377,1727617890481,-851.89,0.00010999,2]
[339447378,1727617890490,-614.75,0.00010999,2]
[339447379,1727617890499,-614.75,0.00010999,2]
[339447380,1727617890509,-851.89,0.00010999,2]
[339447381,1727617890518,-500.0,0.00010999,2]
[339447382,1727617890527,-851.89,0.00010999,2]
[339447383,1727617890537,-614.75,0.00010999,2]
[339447384,1727617890546,-500.0,0.00010999,2]
[339447385,1727617890555,-851.89,0.00010999,2]
[339447386,1727617890564,-614.75,0.00010999,2]
[339447387,1727617890573,-500.0,0.00010999,2]
[339447388,1727617890584,-851.89,0.00010999,2]
[339447389,1727617890594,-614.75,0.00010999,2]
[339447390,1727617890603,-500.0,0.00010999,2]
[339447391,1727617890612,-500.0,0.00010999,2]
[339447392,1727617890621,-851.89,0.00010999,2]
[339447393,1727617890631,-500.0,0.00010999,2]
[339447394,1727617890640,-500.0,0.00010999,2]
[339447395,1727617890653,-500.0,0.00010999,2]
[339447396,1727617890668,-851.89,0.00010999,2]
[339447397,1727617890678,-500.0,0.00010999,2]
[339447398,1727617890687,-500.0,0.00010999,2]
[339447399,1727617890696,-614.75,0.00010999,2]
[339447400,1727617890705,-500.0,0.00010999,2]
[339447401,1727617890715,-851.89,0.00010999,2]
[339447402,1727617890724,-500.0,0.00010999,2]
[339447403,1727617890733,-614.75,0.00010999,2]
[339447404,1727617890743,-500.0,0.00010999,2]
[339447405,1727617890753,-500.0,0.00010999,2]
[339447406,1727617890762,-39.24487035,0.00010999,2]
[339447407,1727617891128,-500.0,0.00010998,2]
[339447408,1727617891138,-500.0,0.00010998,2]
[339447409,1727617891147,-500.0,0.00010998,2]
[339447410,1727617891157,-500.0,0.00010998,2]
[339447411,1727617891166,-500.0,0.00010998,2]
[339447412,1727617891175,-500.0,0.00010998,2]
[339447413,1727617891186,-500.0,0.00010998,2]
[339447414,1727617891195,-500.0,0.00010998,2]
[339447415,1727617891206,-812.64512965,0.00010999,2]
[339447416,1727617891216,-500.0,0.00010999,2]
[339447417,1727617891227,-614.75,0.00010999,2]
[339447418,1727617891238,-500.0,0.00010999,2]
[339447419,1727617891251,-500.0,0.00010999,2]
[339447420,1727617891261,-851.89,0.00010999,2]
[339447421,1727617891270,-500.0,0.00010999,2]
[339447422,1727617891279,-614.75,0.00010999,2]
[339447423,1727617891289,-500.0,0.00010999,2]
[339447424,1727617891298,-500.0,0.00010999,2]
[339447425,1727617891307,-851.89,0.00010999,2]
[339447426,1727617891317,-324.88,0.00010999,2]
[339447427,1727617891326,-614.75,0.00010999,2]
[339447428,1727617891335,-500.0,0.00010999,2]
[339447429,1727617891345,-851.89,0.00010999,2]
[339447430,1727617891355,-164.30703724,0.00010999,2]
[339447431,1727617891365,-851.95,0.00010999,2]
[339447432,1727617891375,-614.75,0.00010999,2]
[339447433,1727617891385,-614.98931191,0.00010999,2]
[339447434,1727617891396,-500.0,0.00010999,2]
[339447435,1727617891405,-626.6,0.00010999,2]
[339447436,1727617891414,-39829.80357627,0.00011,2]
[339447437,1727617891424,-141352.15494513,0.00011,2]
[339447438,1727617891442,-500.0,0.00010998,2]
[339447439,1727617891451,-4475.06491168,0.00011,2]
[339447440,1727617891462,-946.07969742,0.00011,2]
[339447441,1727617919677,210.04,9.589e-05,2]
[339447497,1727618228152,527.38,8.351e-05,2]
[339447499,1727618436230,1432.4875,9.9e-05,2]
[339447500,1727618474310,159.12,9.589e-05,2]
[339447501,1727618516394,252.05602986,9.541e-05,2]
[339447502,1727618565189,-337.95767647,0.00021999,120]
[339447503,1727618565234,-220.99998,0.00022,30]
[339447504,1727618565503,-158.891629,0.00022,30]
[339447505,1727618565544,-158.891629,0.00022,30]
[339447506,1727618565585,-695.7312087,0.00023233,120]
[339447507,1727618565632,-800.0,0.00025,50]
[339447508,1727618565674,-546.403518,0.00027,120]
[339447509,1727618565718,-2000.0,0.00027397,30]
[339447510,1727618565758,-2000.0,0.00027397,30]
[339447511,1727618565796,-2000.0,0.00027397,30]
[339447512,1727618565834,-2000.0,0.00027397,30]
[339447513,1727618565871,-2000.0,0.00027397,30]
[339447514,1727618565908,-2000.0,0.00027397,30]
[339447515,1727618565947,-2000.0,0.00027397,30]
[339447516,1727618565986,-2000.0,0.00027397,30]
[339447517,1727618566027,-2000.0,0.00027397,30]
[339447518,1727618566065,-2000.0,0.00027397,30]
[339447519,1727618566103,-2000.0,0.00027397,30]
[339447520,1727618566143,-2000.0,0.00027397,30]
[339447521,1727618566182,-2000.0,0.00027397,30]
[339447522,1727618566220,-2000.0,0.00027397,30]
[339447523,1727618566259,-2000.0,0.00027397,30]
[339447524,1727618566297,-2000.0,0.00027397,30]
[339447525,1727618566335,-2000.0,0.00027397,30]
[339447526,1727618566372,-2000.0,0.00027397,30]
[339447527,1727618566412,-2000.0,0.00027397,30]
[339447528,1727618566451,-1006.73610493,0.00027397,30]
[339447529,1727618566491,-1000.0,0.00027397,32]
[339447530,1727618566532,-1000.0,0.00027397,32]
[339447531,1727618566572,-200.0,0.00027397,60]
[339447532,1727618566612,-1739.01,0.000274,30]
[339447533,1727618566651,-1739.01,0.000274,30]
[339447534,1727618566689,-1739.01,0.000274,30]
[339447535,1727618566730,-1739.01,0.000274,30]
[339447536,1727618566769,-1739.01,0.000274,30]
[339447537,1727618566808,-1739.01,0.000274,30]
[339447538,1727618566849,-1739.01,0.000274,30]
[339447539,1727618566890,-1739.01,0.000274,30]
[339447540,1727618566932,-1739.01,0.000274,30]
[339447541,1727618566974,-1739.01,0.000274,30]
[339447542,1727618567018,-283.0,0.0002779,30]
[339447543,1727618567060,-2232.13543552,0.00027945,60]
[339447544,1727618567102,-283.0,0.0002871,30]
[339447545,1727618567144,-152.0,0.00028717,30]
[339447546,1727618567188,-152.0,0.00029038,31]
[339447547,1727618567231,-152.0,0.00029358,32]
[339447548,1727618567287,-283.0,0.0002962,30]
[339447549,1727618567328,-153.31527511,0.00029621,35]
[339447550,1727618567369,-3090.69154244,0.00029621,35]
[339447551,1727618567410,-759.36152687,0.00029621,35]
[339447552,1727618567451,-152.0,0.00029679,33]
[339447553,1727618567499,-152.0,0.0003,34]
[339447554,1727618567540,-1467.72926058,0.0003,120]
[339447555,1727618567583,-800.0,0.0003,120]
[339447556,1727618567628,-1140.68219286,0.00030136,30]
[339447557,1727618567673,-200.0,0.00030137,60]
[339447558,1727618567724,-2000.0,0.00032,120]
[339447559,1727618567770,-158.891629,0.00032,32]
[339447560,1727618567817,-158.891629,0.00032,33]
[339447561,1727618567863,-2072.09,0.00032,32]
[339447562,1727618567911,-999.0,0.00032876,120]
[339447563,1727618567956,-1000.0,0.00032877,34]
[339447564,1727618568001,-1000.0,0.00032877,34]
[339447565,1727618568045,-200.0,0.00032877,60]
[339447566,1727618568091,-158.891629,0.00033,34]
[339447567,1727618568138,-2411.4178706,0.00033,120]
[339447568,1727618568186,-5447.33,0.00033151,120]
[339447569,1727618568233,-999.0,0.00033972,120]
[339447570,1727618568279,-158.891629,0.00034,35]
[339447571,1727618568324,-25070.4164022,0.00034,30]
[339447572,1727618568369,-358.40128,0.00034,30]
[339447573,1727618568415,-5704.6,0.00034449,45]
[339447574,1727618568461,-1355.79163576,0.00035,120]
[339447575,1727618568505,-158.891629,0.00035,31]
[339447576,1727618568551,-100000.0,0.00035,120]
[339447577,1727618568594,-3327.06498364,0.00035,120]
[339447578,1727618568638,-4030.07,0.00035,32]
[339447579,1727618568683,-700.0,0.00035,120]
[339447580,1727618568727,-999.0,0.00035068,120]
[339447581,1727618568771,-300.446,0.00035386,42]
[339447582,1727618568814,-25070.4164022,0.000355,30]
[339447583,1727618568855,-5006.71599,0.0003552,30]
[339447584,1727618568897,-200.0,0.00035616,60]
[339447585,1727618568942,-316568.097391,0.000357,30]
[339447586,1727618568985,-30144.54272633,0.000359,30]
[339447587,1727618569026,-1005.74957283,0.00036,30]
[339447588,1727618569071,-250.0,0.00036,30]
[339447589,1727618569114,-999.0,0.00036164,120]
[339447590,1727618569157,-2110.0,0.000365,30]
[339447591,1727618569200,-14946.08137001,0.000365,30]
[339447592,1727618569247,-13514.3193895,0.0003688,30]
[339447593,1727618569290,-158.891629,0.00036986,60]
[339447594,1727618569333,-168889.55256234,0.00037,120]
[339447595,1727618569375,-2110.0,0.00037,30]
[339447596,1727618569418,-150.0,0.00037,30]
[339447597,1727618569462,-1500.0,0.00037,30]
[339447598,1727618569505,-2000.0,0.00037,30]
[339447599,1727618569547,-25070.4164022,0.00037,30]
[339447600,1727618569587,-201.0,0.00037,120]
[339447601,1727618569629,-3007.042154,0.0003701,30]
[339447602,1727618569670,-1075.0,0.00037042,30]
[339447603,1727618569710,-151.0,0.00037233,120]
[339447604,1727618569756,-5000.0,0.0003725,120]
[339447605,1727618569969,-999.0,0.0003726,120]
[339447606,1727618570015,-150.0,0.00037298,120]
[339447607,1727618570062,-9215.18436764,0.000373,30]
[339447608,1727618570107,-150.0,0.00037498,120]
[339447609,1727618570153,-5000.0,0.000375,120]
[339447610,1727618570200,-8242.79699614,0.000375,120]
[339447611,1727618570247,-2823.7794947,0.000375,30]
[339447612,1727618570292,-2110.0,0.000375,30]
[339447613,1727618570337,-1000.0,0.00037654,31]
[339447614,1727618570380,-150.0,0.00037698,120]
[339447615,1727618570423,-35896.8286,0.000378,60]
[339447616,1727618570467,-372.66821841,0.000378,120]
[339447617,1727618570511,-150.0,0.00037898,120]
[339447618,1727618570555,-6224.4,0.00037898,65]
[339447619,1727618570599,-5000.0,0.000379,60]
[339447620,1727618570642,-200.0,0.0003792,120]
[339447621,1727618570685,-411.0,0.00037986,90]
[339447622,1727618570729,-629.19233572,0.00037999,120]
[339447623,1727618570772,-40000.0,0.00038,45]
[339447624,1727618570817,-5000.0,0.00038,120]
[339447625,1727618570862,-5000.0,0.00038,120]
[339447626,1727618570905,-15484.69898021,0.00038,30]
[339447627,1727618570950,-5000.0,0.00038,120]
[339447628,1727618570996,-400.0,0.00038,30]
[339447629,1727618571042,-35337.74371799,0.00038,30]
[339447630,1727618571087,-15306.25696928,0.00038,60]
[339447631,1727618571132,-1000.0,0.00038,120]
[339447632,1727618571178,-3795.54834804,0.00038,30]
[339447633,1727618571223,-1000.0,0.00038,30]
[339447634,1727618571268,-165.32309469,0.00038,120]
[339447635,1727618571310,-1059.9410815,0.00038,39]
[339447636,1727618571352,-37886.69,0.00038,30]
[339447637,1727618571395,-2793.79037685,0.00038,120]
[339447638,1727618571434,-20000.0,0.00038,30]
[339447639,1727618571474,-7126.404825,0.00038,120]
[339447640,1727618571514,-3041.542605,0.00038,120]
[339447641,1727618571554,-1818.01,0.00038,30]
[339447642,1727618571594,-1270.44,0.00038,120]
[339447643,1727618571635,-1005.09,0.00038,120]
[339447644,1727618571678,-329.67,0.00038,120]
[339447645,1727618571726,-1015.78,0.00038,120]
[339447646,1727618571768,-2150.82,0.00038,30]
[339447647,1727618571812,-2955.84,0.00038,120]
[339447648,1727618571855,-250.0,0.00038,30]
[339447649,1727618571898,-2000.0,0.000381,30]
[339447650,1727618571941,-151.0,0.00038137,120]
[339447651,1727618571986,-1500.0,0.000382,30]
[339447652,1727618572032,-2000.0,0.000382,30]
[339447653,1727618572075,-5000.0,0.0003825,120]
[339447654,1727618572119,-1000.0,0.0003825,30]
[339447655,1727618572161,-150.0,0.00038298,120]
[339447656,1727618572204,-2000.0,0.000383,30]
[339447657,1727618572251,-999.0,0.00038356,120]
[339447658,1727618572298,-258.65897572,0.00038356,60]
[339447659,1727618572342,-1000.0,0.00038356,36]
[339447660,1727618572386,-1000.0,0.00038356,36]
[339447661,1727618572432,-10000.0,0.000384,120]
[339447662,1727618572476,-10000.0,0.000384,120]
[339447663,1727618572520,-1994.97962426,0.000384,33]
[339447664,1727618572566,-5914.85223521,0.000384,33]
[339447665,1727618572610,-175.8193004,0.000384,33]
[339447666,1727618572654,-2000000.0,0.000384,30]
[339447667,1727618572698,-150.0,0.00038498,120]
[339447668,1727618572744,-720.46885551,0.000385,120]
[339447669,1727618572788,-10000.0,0.000385,120]
[339447670,1727618572832,-5365.0,0.000385,120]
[339447671,1727618572874,-2000.0,0.000385,30]
[339447672,1727618572914,-168.86414348,0.000385,120]
[339447673,1727618572958,-25070.4164022,0.000385,30]
[339447674,1727618573003,-150.0,0.00038698,120]
[339447675,1727618573047,-1000.0,0.000387,120]
[339447676,1727618573090,-5181.5386703,0.00038721,90]
[339447677,1727618573131,-5000.0,0.0003875,120]
[339447678,1727618573173,-800.0,0.00038765,60]
[339447679,1727618573215,-1588.66,0.000388,48]
[339447680,1727618573256,-36852.36855,0.000388,60]
[339447681,1727618573298,-2836.72541571,0.000388,30]
[339447682,1727618573340,-6725.01463226,0.0003888,90]
[339447683,1727618573381,-150.0,0.00038898,120]
[339447684,1727618573422,-93778.85947501,0.000389,30]
[339447685,1727618573462,-28041.25528946,0.0003899,30]
[339447686,1727618573502,-5212.49473551,0.00038999,120]
[339447687,1727618573545,-160.0,0.00039,30]
[339447688,1727618573588,-100000.0,0.00039,120]
[339447689,1727618573630,-1182.60615108,0.00039,120]
[339447690,1727618573673,-4217.7960616,0.00039,120]
[339447691,1727618573716,-3176.85843357,0.00039,60]
[339447692,1727618573758,-7815.82146589,0.00039,120]
[339447693,1727618573801,-10000.0,0.00039,120]
[339447694,1727618573844,-1000.0,0.00039,120]
[339447695,1727618573887,-2000.0,0.00039,120]
[339447696,1727618573929,-9000.0,0.00039,120]
[339447697,1727618573972,-2000.0,0.00039,30]
[339447698,1727618574016,-341.0,0.00039,120]
[339447699,1727618574059,-35000.0,0.00039,30]
[339447700,1727618574103,-1833.947388,0.00039,40]
[339447701,1727618574146,-5000.0,0.00039041,30]
[339447702,1727618574190,-151.0,0.00039041,120]
[339447703,1727618574235,-5000.0,0.00039057,30]
[339447704,1727618574276,-1676.3,0.00039061,30]
[339447705,1727618574318,-5000.0,0.00039077,30]
[339447706,1727618574360,-5000.0,0.00039091,30]
[339447707,1727618574406,-307.51,0.00039101,30]
[339447708,1727618574451,-5000.0,0.0003911,30]
[339447709,1727618574648,-4974.63,0.0003913,30]
[339447710,1727618574692,-5000.0,0.00039137,30]
[339447711,1727618574736,-5000.0,0.00039176,30]
[339447712,1727618574779,-1539.09,0.00039196,30]
[339447713,1727618574822,-5000.0,0.000392,120]
[339447714,1727618574864,-11908.00536,0.00039208,30]
[339447715,1727618574906,-3469.84,0.00039217,30]
[339447716,1727618574951,-1014.94,0.0003922,35]
[339447717,1727618574996,-2101.17,0.00039233,30]
[339447718,1727618575042,-5000.0,0.0003925,120]
[339447719,1727618575087,-2500.0,0.00039274,30]
[339447720,1727618575131,-2371.55,0.00039292,30]
[339447721,1727618575176,-150.0,0.00039298,120]
[339447722,1727618575220,-569.78656553,0.000394,30]
[339447723,1727618575263,-10440.12979888,0.000394,30]
[339447724,1727618575306,-1318378.06357316,0.000394,30]
[339447725,1727618580273,-681621.93642684,0.000394,30]
[339447726,1727618580321,-3000.0,0.000394,120]
[339447727,1727618580370,-11908.00536,0.00039408,30]
[339447728,1727618580416,-5000.0,0.00039428,30]
[339447729,1727618580463,-5000.0,0.00039435,30]
[339447730,1727618580508,-5000.0,0.00039437,30]
[339447731,1727618580555,-999.0,0.00039452,120]
[339447732,1727618580599,-5000.0,0.00039455,30]
[339447733,1727618580644,-782.21,0.00039462,30]
[339447734,1727618580689,-428.73416275,0.00039474,30]
[339447735,1727618580734,-5000.0,0.00039477,30]
[339447736,1727618580778,-15461.76833836,0.0003949,30]
[339447737,1727618580823,-151.00372078,0.0003949,30]
[339447738,1727618580868,-5000.0,0.00039491,30]
[339447739,1727618580912,-1592.05182845,0.00039492,30]
[339447740,1727618580957,-296.26685836,0.000395,120]
[339447741,1727618581005,-10000.0,0.000395,120]
[339447742,1727618581299,-5000.0,0.000395,120]
[339447743,1727618581347,-4170.0,0.000395,120]
[339447744,1727618581393,-2335.99,0.00039506,30]
[339447745,1727618581441,-699255.44223069,0.00039511,30]
[339447746,1727618581488,-699255.44223069,0.00039512,30]
[339447747,1727618581534,-15461.76833836,0.00039527,30]
[339447748,1727618581579,-1592.05182845,0.00039546,30]
[339447749,1727618581626,-18575.25867293,0.00039547,30]
[339447750,1727618581672,-5000.0,0.00039551,30]
[339447751,1727618581722,-699255.44223069,0.00039552,30]
[339447752,1727618581770,-139103.09954423,0.00039552,30]
[339447753,1727618581817,-139103.09954423,0.00039562,30]